[Event "World Junior U20 Girls 2018"]
[Site "Gebze"]
[Date "2018.09.08"]
[Round "5"]
[White "Santeramo, Alessia"]
[Black "Sieber, Fiona"]
[Result "0-1"]
[ECO "A45"]
[WhiteElo "2124"]
[BlackElo "2277"]
[Annotator "NA"]
[PlyCount "112"]
[EventDate "2018.09.05"]
[EventType "swiss"]
[EventCountry "TUR"]
[SourceTitle "playchess.com"]
[Source "ChessBase"]
[SourceQuality "1"]
[TimeControl "40/5400+30:1800+30"]

1. d4 {[%emt 0:00:30]} Nf6 {[%emt 0:00:30]} 2. Bg5 {[%emt 0:00:00]} Ne4 {[%emt 0:00:30]} 3. h4 {[%emt 0:00:00]} c5 {[%emt 0:08:30]} 4. d5 {[%emt 0:00:30]} Qb6 {[%emt 0:02:30]} 5. Nd2 {[%emt 0:00:00]} Nxg5 {[%emt 0:01:30] A45: Trompowsky Attack} (5... h6 6. Bf4 Qxb2 7. Nxe4 Qb4+ 8. Qd2 Qxe4 9. f3 Qd4 10. c3 Qxd2+ 11. Kxd2 d6 12. e4 Nd7 13. h5 {1-0 (37) Triapishko,O (2531)-Kokarev,D (2616) Taganrog 2018}) 6. hxg5 {[%emt 0:00:00]} Qxb2 {[%emt 0:00:00]} 7. Rb1 {[%emt 0:00:30]} Qe5 {[%emt 0:09:00]} 8. e4 {[%emt 0:00:30]} g6 {[%emt 0:02:30]} 9. Ngf3 {[%emt 0:00:30]} Qg7 {[%emt 0:00:30]} 10. e5 {[%emt 0:00:30]} d6 $146 {[%emt 0:04:30]} ({Predecessor:} 10... h6 11. e6 fxe6 12. dxe6 d6 13. Bb5+ {0-1 (33) Escobar,C (2200)-Ottesen,S (2370) ICCF email 2006}) 11. Bb5+ {[%emt 0:01:30]} Kd8 {[%emt 0:01:30]} 12. Nc4 {[%emt 0:11:30]} Kc7 {[%emt 0:10:30]} 13. Qd2 {[%emt 0:08:30]} b6 {[%emt 0:00:30]} 14. a4 {[%emt 0:03:30]} h6 {[%emt 0:11:30]} 15. a5 {[%emt 0:12:30]} hxg5 {[%emt 0:02:30]} 16. Rxh8 {[%emt 0:08:30]} Qxh8 {[%emt 0:00:30]} 17. Kf1 {[%emt 0:00:00]} g4 {[%emt 0:03:30]} 18. Ng1 {[%emt 0:06:00]} Bd7 {[%emt 0:09:30]} 19. Qc3 {[%emt 0:12:30]} Bg7 {[%emt 0:02:30]} 20. Qa3 {[%emt 0:00:30]} Bxb5 {[%emt 0:03:30]} 21. Rxb5 {[%emt 0:00:30]} Nd7 {[%emt 0:00:30]} 22. Qa4 {[%emt 0:06:30]} Nxe5 {[%emt 0:03:30]} 23. Nxe5 {[%emt 0:02:30]} Bxe5 {[%emt 0:00:30]} 24. Rxb6 {[%emt 0:01:30] [#]} Qe8 $1 {[%emt 0:03:36]} ({Bitte nicht} 24... axb6 $6 25. Qc6+ Kb8 26. Qxb6+ Kc8 27. Qc6+ Kb8 28. Qb6+ Kc8 29. Qc6+ Kb8 30. Qb6+ $11) 25. Rc6+ {[%emt 0:00:30]} Kd8 {[%emt 0:00:00]} 26. Qxg4 {[%emt 0:08:51]} Qd7 {[%emt 0:01:16]} 27. Qh4 {[%emt 0:00:46]} Qb7 {[%emt 0:01:13]} 28. g3 {[%emt 0:01:28]} Qb1+ {[%emt 0:03:33]} 29. Kg2 {[%emt 0:00:30]} Qxc2 {[%emt 0:00:00]} 30. Nf3 {[%emt 0:02:41]} Qd3 {[%emt 0:02:02]} 31. Rxd6+ {[%emt 0:00:30]} Bxd6 {[%emt 0:01:13]} 32. Qh8+ {[%emt 0:00:03]} Kc7 {[%emt 0:01:37]} 33. Qxa8 {[%emt 0:00:05]} Qa6 {[%emt 0:00:47]} 34. Qe8 {[%emt 0:00:59]} f6 {[%emt 0:00:58]} 35. Qa4 {[%emt 0:02:54]} Qb7 {[%emt 0:01:29]} 36. Qc4 {[%emt 0:00:05]} a6 {[%emt 0:00:45]} 37. Nd4 {[%emt 0:00:45]} Qb4 {[%emt 0:03:48]} 38. Ne6+ {[%emt 0:00:42]} Kb7 {[%emt 0:00:15]} 39. Qc2 {[%emt 0:09:03]} Qxa5 {[%emt 0:03:56]} 40. Qxg6 {[%emt 0:00:00]} Qd2 {[%emt 0:00:00]} 41. Nd8+ {[%emt 0:03:38]} Kb6 {[%emt 0:10:32]} 42. Qg8 {[%emt 0:01:30]} c4 {[%emt 0:01:30]} 43. Qe6 {[%emt 0:08:57]} c3 {[%emt 0:01:30]} 44. Nf7 {[%emt 0:02:00]} c2 {[%emt 0:01:30]} 45. Nxd6 {[%emt 0:00:07]} exd6 {[%emt 0:00:30]} 46. Qxd6+ {[%emt 0:00:03]} Kb5 {[%emt 0:00:30]} 47. Qc6+ {[%emt 0:00:32]} Kb4 {[%emt 0:00:59]} 48. Qb6+ {[%emt 0:00:24]} Kc4 {[%emt 0:07:32]} 49. Qxa6+ {[%emt 0:02:25]} Kb3 {[%emt 0:00:18]} 50. Qb5+ {[%emt 0:02:34]} Qb4 {[%emt 0:00:12]} 51. Qd3+ {[%emt 0:00:14]} Qc3 {[%emt 0:00:30]} 52. Qb5+ {[%emt 0:00:00]} Ka2 $19 {[%emt 0:00:07]} 53. Qa4+ {[%emt 0:00:00]} Kb2 {[%emt 0:02:06]} 54. Qb5+ {[%emt 0:00:00]} Qb3 {[%emt 0:00:47]} 55. Qe2 {[%emt 0:00:07]} Qxd5+ {[%emt 0:00:01]} 56. f3 {[%emt 0:01:10]} Kb1 {[%emt 0:00:30]} 0-1

[Event "World Junior U20 Girls 2018"]
[Site "Gebze"]
[Date "2018.09.08"]
[Round "5"]
[White "Ozbay, Ece"]
[Black "Kamalidenova, Meruert"]
[Result "1-0"]
[ECO "C80"]
[WhiteElo "2114"]
[BlackElo "2011"]
[Annotator "NA"]
[PlyCount "67"]
[EventDate "2018.09.05"]
[EventType "swiss"]
[EventCountry "TUR"]
[SourceTitle "playchess.com"]
[Source "ChessBase"]
[SourceQuality "1"]
[TimeControl "40/5400+30:1800+30"]

1. e4 {[%emt 0:00:30]} e5 {[%emt 0:01:30]} 2. Nf3 {[%emt 0:00:30]} Nc6 {[%emt 0:00:30]} 3. Bb5 {[%emt 0:00:00]} a6 {[%emt 0:00:00]} 4. Ba4 {[%emt 0:00:00]} Nf6 {[%emt 0:00:00]} 5. O-O {[%emt 0:00:00]} Nxe4 {[%emt 0:00:30]} 6. Re1 {[%emt 0:01:00]} Nc5 {[%emt 0:00:30]} 7. Nc3 {[%emt 0:00:30]} Be7 {[%emt 0:01:30]} 8. Bxc6 {[%emt 0:01:30]} dxc6 {[%emt 0:00:30]} 9. Nxe5 {[%emt 0:02:30]} O-O {[%emt 0:01:30]} 10. d4 {[%emt 0:02:30]} Ne6 {[%emt 0:01:30]} 11. Be3 {[%emt 0:00:00]} f6 {[%emt 0:00:30]} 12. Nc4 {[%emt 0:07:00]} Re8 {[%emt 0:04:30]} 13. f4 {[%emt 0:02:30]} Nf8 {[%emt 0:08:30]} 14. d5 {[%emt 0:05:30]} cxd5 {[%emt 0:06:30]} 15. Nxd5 {[%emt 0:00:30]} Be6 {[%emt 0:01:30]} 16. Nxe7+ {[%emt 0:00:30]} Qxe7 {[%emt 0:00:30]} 17. Na5 {[%emt 0:01:30]} b6 {[%emt 0:08:30]} 18. Nc6 {[%emt 0:00:30]} Qd7 {[%emt 0:00:30]} 19. Nd4 {[%emt 0:03:30]} Bg4 {[%emt 0:02:30]} 20. Qd3 {[%emt 0:01:30]} c5 {[%emt 0:03:30]} 21. Qb3+ {[%emt 0:01:30]} Kh8 {[%emt 0:01:30]} 22. Ne2 {[%emt 0:00:30]} Qc6 {[%emt 0:07:30]} 23. Ng3 {[%emt 0:04:30]} Be6 {[%emt 0:02:30]} 24. Qc3 {[%emt 0:01:30]} Rad8 {[%emt 0:01:30]} 25. Rad1 {[%emt 0:01:30]} Qa8 {[%emt 0:09:30]} 26. Rxd8 {[%emt 0:08:30]} Rxd8 {[%emt 0:01:30]} 27. f5 {[%emt 0:03:30]} Bd5 {[%emt 0:02:30]} 28. Nh5 {[%emt 0:01:30]} Kg8 {[%emt 0:09:30]} 29. Bh6 {[%emt 0:03:30]} Rd7 {[%emt 0:02:30]} 30. Qg3 {[%emt 0:01:30]} Qb7 {[%emt 0:01:30]} 31. Nxf6+ {[%emt 0:01:30]} Kh8 {[%emt 0:00:00]} 32. Re8 {[%emt 0:01:30]} Rf7 {[%emt 0:01:00]} 33. Bxg7+ {[%emt 0:00:30]} Rxg7 {[%emt 0:00:30]} 34. Rxf8+ {[%emt 0:00:00]} 1-0

[Event "World Junior U20 Girls 2018"]
[Site "Gebze"]
[Date "2018.09.08"]
[Round "5"]
[White "Li, Xinyu"]
[Black "Cramling Bellon, Anna"]
[Result "1-0"]
[ECO "D38"]
[WhiteElo "2086"]
[BlackElo "2009"]
[Annotator "NA"]
[PlyCount "93"]
[EventDate "2018.09.05"]
[EventType "swiss"]
[EventCountry "TUR"]
[SourceTitle "playchess.com"]
[Source "ChessBase"]
[SourceQuality "1"]
[TimeControl "40/5400+30:1800+30"]

1. d4 {[%emt 0:00:30]} Nf6 {[%emt 0:00:30]} 2. c4 {[%emt 0:00:00]} e6 {[%emt 0:00:30]} 3. Nf3 {[%emt 0:00:00]} d5 {[%emt 0:00:00]} 4. Nc3 {[%emt 0:00:00]} Bb4 {[%emt 0:01:00]} 5. cxd5 {[%emt 0:00:00]} exd5 {[%emt 0:00:00]} 6. Bf4 {[%emt 0:00:30]} c6 {[%emt 0:06:00]} 7. e3 {[%emt 0:00:30]} Ne4 {[%emt 0:17:30]} 8. Rc1 {[%emt 0:02:30]} Nd7 {[%emt 0:10:30]} 9. Bd3 {[%emt 0:03:30]} Qe7 {[%emt 0:04:30]} 10. h3 {[%emt 0:07:30]} O-O {[%emt 0:01:30]} 11. O-O {[%emt 0:00:30]} h6 {[%emt 0:01:30]} 12. Qc2 {[%emt 0:00:30]} Re8 {[%emt 0:05:30]} 13. Rb1 {[%emt 0:12:30]} Ndf6 {[%emt 0:13:30]} 14. Ne5 {[%emt 0:02:30]} Ng5 {[%emt 0:03:30]} 15. Ne2 {[%emt 0:23:30]} Bd6 {[%emt 0:02:30]} 16. Ng3 {[%emt 0:05:30]} Nge4 {[%emt 0:07:30]} 17. Nxe4 {[%emt 0:01:30]} dxe4 {[%emt 0:01:30]} 18. Bc4 {[%emt 0:01:30]} Be6 {[%emt 0:00:30]} 19. Rfe1 {[%emt 0:05:30]} Rac8 {[%emt 0:04:43]} 20. Bxe6 {[%emt 0:12:45]} Qxe6 {[%emt 0:00:30]} 21. Qa4 {[%emt 0:01:00]} Nh5 {[%emt 0:10:44]} 22. Bh2 {[%emt 0:01:48]} b5 {[%emt 0:03:20]} 23. Qa6 {[%emt 0:02:12]} Nf6 {[%emt 0:01:52]} 24. a3 {[%emt 0:01:25]} Nd5 {[%emt 0:00:56]} 25. Rbc1 {[%emt 0:02:00]} Nb6 {[%emt 0:01:16]} 26. Rc2 {[%emt 0:07:02]} f6 {[%emt 0:00:30]} 27. Ng6 {[%emt 0:00:58]} Bxh2+ {[%emt 0:00:51]} 28. Kxh2 {[%emt 0:00:03]} Qd6+ {[%emt 0:00:23]} 29. Kg1 {[%emt 0:00:13]} Nc4 {[%emt 0:00:40]} 30. Qxa7 {[%emt 0:00:59]} Ra8 {[%emt 0:00:41]} 31. Qc5 {[%emt 0:00:30]} Qxc5 {[%emt 0:00:10]} 32. dxc5 {[%emt 0:00:00]} Kh7 {[%emt 0:00:54]} 33. Nf4 {[%emt 0:00:00]} Red8 {[%emt 0:00:26]} 34. Ne6 {[%emt 0:00:27]} Rd5 {[%emt 0:00:32]} 35. Nc7 {[%emt 0:00:20]} Rad8 {[%emt 0:00:40]} 36. Nxd5 {[%emt 0:00:30]} Rxd5 {[%emt 0:00:00]} 37. a4 {[%emt 0:00:43]} Kg6 {[%emt 0:00:58]} 38. axb5 {[%emt 0:00:30]} cxb5 {[%emt 0:00:00]} 39. c6 {[%emt 0:00:25]} Rd8 {[%emt 0:00:38]} 40. b3 {[%emt 0:00:00]} Na5 {[%emt 0:00:00]} 41. c7 {[%emt 0:02:10]} Rc8 {[%emt 0:01:46]} 42. Rd1 {[%emt 0:00:00]} Nb7 {[%emt 0:00:30]} 43. Rd5 {[%emt 0:00:00]} b4 {[%emt 0:00:00]} 44. Rb5 {[%emt 0:00:30]} Nd6 {[%emt 0:00:00]} 45. Rb8 {[%emt 0:00:00]} Kf7 {[%emt 0:01:30]} 46. Rc6 {[%emt 0:00:00]} Ke7 {[%emt 0:05:30]} 47. Rxd6 {[%emt 0:00:30]} 1-0

[Event "World Junior U20 Girls 2018"]
[Site "Gebze"]
[Date "2018.09.08"]
[Round "5"]
[White "Malatsilava, Volha"]
[Black "Diakonova, Ekaterina"]
[Result "0-1"]
[ECO "B78"]
[WhiteElo "2040"]
[BlackElo "2243"]
[Annotator "NA"]
[PlyCount "58"]
[EventDate "2018.09.05"]
[EventType "swiss"]
[EventCountry "TUR"]
[SourceTitle "playchess.com"]
[Source "ChessBase"]
[SourceQuality "1"]
[TimeControl "40/5400+30:1800+30"]

1. e4 {[%emt 0:00:30]} c5 {[%emt 0:00:30]} 2. Nf3 {[%emt 0:00:30]} g6 {[%emt 0:00:00]} 3. d4 {[%emt 0:00:00]} cxd4 {[%emt 0:00:00]} 4. Nxd4 {[%emt 0:00:00]} Nc6 {[%emt 0:00:30]} 5. Nc3 {[%emt 0:00:30]} Bg7 {[%emt 0:00:30]} 6. Be3 {[%emt 0:00:00]} Nf6 {[%emt 0:00:00]} 7. Bc4 {[%emt 0:00:00]} O-O {[%emt 0:00:00]} 8. Bb3 {[%emt 0:00:00]} d6 {[%emt 0:00:00]} 9. f3 {[%emt 0:00:00]} Bd7 {[%emt 0:00:00]} 10. h4 {[%emt 0:00:30]} h5 {[%emt 0:00:00]} 11. Qd2 {[%emt 0:00:30]} Ne5 {[%emt 0:00:00]} 12. O-O-O {[%emt 0:00:00]} Rc8 {[%emt 0:00:00]} 13. Bg5 {[%emt 0:00:00]} Rc5 {[%emt 0:00:00]} 14. Kb1 {[%emt 0:00:00]} b5 {[%emt 0:00:30]} 15. g4 {[%emt 0:02:00]} hxg4 {[%emt 0:07:30]} 16. h5 {[%emt 0:00:00]} Nxh5 {[%emt 0:00:30]} 17. Nd5 {[%emt 0:00:00]} Re8 {[%emt 0:02:30]} 18. Rxh5 {[%emt 0:24:30]} gxh5 {[%emt 0:03:30]} 19. Qh2 {[%emt 0:00:00]} Rc4 {[%emt 0:19:30]} 20. Bxc4 {[%emt 0:03:00]} bxc4 {[%emt 0:02:30]} 21. f4 {[%emt 0:02:30]} Nf3 {[%emt 0:02:30]} 22. Nxf3 {[%emt 0:00:30]} gxf3 {[%emt 0:00:00]} 23. Qxh5 {[%emt 0:00:30]} f2 {[%emt 0:02:00]} 24. Rh1 {[%emt 0:09:30]} Qa5 {[%emt 0:02:30]} 25. Qh7+ {[%emt 0:23:30]} Kf8 {[%emt 0:00:00]} 26. Nc3 {[%emt 0:00:30]} Rb8 {[%emt 0:08:00]} 27. Bh6 {[%emt 0:00:30]} Rxb2+ {[%emt 0:00:30]} 28. Ka1 {[%emt 0:09:30]} Rxa2+ {[%emt 0:00:30]} 29. Kb1 {[%emt 0:00:30]} Ra1+ {[%emt 0:00:30]} 0-1

[Event "World Junior U20 Girls 2018"]
[Site "Gebze"]
[Date "2018.09.08"]
[Round "5"]
[White "Caballero Quijano, Mitzy Mishell"]
[Black "Nass, Sara"]
[Result "0-1"]
[ECO "B15"]
[WhiteElo "2034"]
[BlackElo "1888"]
[Annotator "NA"]
[PlyCount "106"]
[EventDate "2018.09.05"]
[EventType "swiss"]
[EventCountry "TUR"]
[SourceTitle "playchess.com"]
[Source "ChessBase"]
[SourceQuality "1"]
[TimeControl "40/5400+30:1800+30"]

1. e4 {[%emt 0:00:30]} c6 {[%emt 0:00:30]} 2. d4 {[%emt 0:00:00]} d5 {[%emt 0:00:30]} 3. Nd2 {[%emt 0:00:00]} dxe4 {[%emt 0:00:00]} 4. Nxe4 {[%emt 0:00:00]} Nf6 {[%emt 0:03:00]} 5. Nxf6+ {[%emt 0:01:00]} exf6 {[%emt 0:00:30]} 6. Nf3 {[%emt 0:02:30]} Bd6 {[%emt 0:00:30]} 7. Bd3 {[%emt 0:01:30]} O-O {[%emt 0:00:30]} 8. Be3 {[%emt 0:02:30]} Re8 {[%emt 0:04:30]} 9. Qd2 {[%emt 0:01:30]} a5 {[%emt 0:02:30]} 10. O-O-O {[%emt 0:00:30]} Be6 {[%emt 0:01:30]} 11. Kb1 {[%emt 0:00:30]} Na6 {[%emt 0:02:30]} 12. c3 {[%emt 0:00:00]} Nc7 {[%emt 0:11:30]} 13. Qc2 {[%emt 0:00:00]} h6 {[%emt 0:02:30]} 14. Rdg1 {[%emt 0:01:30]} Nd5 {[%emt 0:01:30]} 15. g4 {[%emt 0:02:30]} Nf4 {[%emt 0:02:30]} 16. Bxf4 {[%emt 0:04:30]} Bxf4 {[%emt 0:00:30]} 17. c4 {[%emt 0:00:30]} a4 {[%emt 0:03:30]} 18. h3 {[%emt 0:00:30]} b5 {[%emt 0:03:30]} 19. Rd1 {[%emt 0:01:30]} Qa5 {[%emt 0:02:30]} 20. d5 {[%emt 0:09:30]} cxd5 {[%emt 0:02:30]} 21. cxd5 {[%emt 0:00:30]} Bd7 {[%emt 0:10:30]} 22. Rhe1 {[%emt 0:06:30]} Rec8 {[%emt 0:07:30]} 23. Qe2 {[%emt 0:02:30]} a3 {[%emt 0:01:30]} 24. Qe4 {[%emt 0:01:30]} f5 {[%emt 0:03:30]} 25. Qxf4 {[%emt 0:14:30]} axb2 {[%emt 0:01:30]} 26. a4 {[%emt 0:00:30]} bxa4 {[%emt 0:04:30]} 27. Qd4 {[%emt 0:07:30]} a3 {[%emt 0:04:30]} 28. Ka2 {[%emt 0:00:00]} Ba4 {[%emt 0:03:30]} 29. Nd2 {[%emt 0:19:00]} Rc1 {[%emt 0:10:02]} 30. Nb3 {[%emt 0:08:41]} Bxb3+ {[%emt 0:01:46]} 31. Kxb3 {[%emt 0:00:09]} Rb8+ {[%emt 0:08:16]} 32. Ka2 {[%emt 0:00:07]} b1=Q+ {[%emt 0:00:20]} 33. Bxb1 {[%emt 0:00:30]} Rb2+ {[%emt 0:00:00]} 34. Qxb2 {[%emt 0:01:06]} axb2+ {[%emt 0:00:12]} 35. Kxb2 {[%emt 0:00:30]} Qc3+ {[%emt 0:00:00]} 36. Ka2 {[%emt 0:00:00]} Qc4+ {[%emt 0:00:23]} 37. Kb2 {[%emt 0:01:08]} Qc3+ {[%emt 0:02:18]} 38. Ka2 {[%emt 0:00:06]} Qxe1 {[%emt 0:00:19]} 39. Rxe1 {[%emt 0:00:08]} Rxe1 {[%emt 0:00:00]} 40. Bxf5 {[%emt 0:00:56]} Re2+ {[%emt 0:00:18]} 41. Kb3 {[%emt 0:00:39]} Rxf2 {[%emt 0:00:36]} 42. Kc4 {[%emt 0:04:30]} g6 {[%emt 0:00:30]} 43. Be4 {[%emt 0:02:30]} Rf4 {[%emt 0:01:30]} 44. Kd3 {[%emt 0:00:30]} Kf8 {[%emt 0:00:30]} 45. Ke3 {[%emt 0:00:30]} Rf1 {[%emt 0:00:30]} 46. Bg2 {[%emt 0:04:30]} Ra1 {[%emt 0:00:30]} 47. h4 {[%emt 0:02:30]} Ke7 {[%emt 0:01:30]} 48. h5 {[%emt 0:00:30]} g5 {[%emt 0:01:30]} 49. Be4 {[%emt 0:01:30]} Kd6 {[%emt 0:01:30]} 50. Kd4 {[%emt 0:00:30]} Rg1 {[%emt 0:00:30]} 51. Bf3 {[%emt 0:00:30]} Rg3 {[%emt 0:00:30]} 52. Be2 {[%emt 0:00:30]} Ra3 {[%emt 0:00:30]} 53. Bc4 {[%emt 0:00:30]} Ra4 {[%emt 0:00:30]} 0-1

[Event "World Junior U20 Girls 2018"]
[Site "Gebze"]
[Date "2018.09.08"]
[Round "5"]
[White "Celik, Eylul"]
[Black "Zairbek kyzy, Begimay"]
[Result "0-1"]
[ECO "D36"]
[WhiteElo "2014"]
[BlackElo "1770"]
[Annotator "NA"]
[PlyCount "80"]
[EventDate "2018.09.05"]
[EventType "swiss"]
[EventCountry "TUR"]
[SourceTitle "playchess.com"]
[Source "ChessBase"]
[SourceQuality "1"]
[TimeControl "40/5400+30:1800+30"]

1. d4 {[%emt 0:00:30]} d5 {[%emt 0:00:30]} 2. c4 {[%emt 0:00:30]} e6 {[%emt 0:00:00]} 3. cxd5 {[%emt 0:00:00]} exd5 {[%emt 0:00:00]} 4. Nc3 {[%emt 0:00:00]} Nf6 {[%emt 0:00:30]} 5. Bg5 {[%emt 0:00:00]} Nbd7 {[%emt 0:00:30]} 6. e3 {[%emt 0:00:00]} Be7 {[%emt 0:00:00]} 7. Bd3 {[%emt 0:00:30]} c6 {[%emt 0:00:00]} 8. Qc2 {[%emt 0:01:30]} O-O {[%emt 0:00:30]} 9. h3 {[%emt 0:00:00]} Re8 {[%emt 0:00:30]} 10. Nf3 {[%emt 0:00:00]} Nf8 {[%emt 0:00:00]} 11. g4 {[%emt 0:00:30]} Ne4 {[%emt 0:01:00]} 12. Bxe7 {[%emt 0:02:30]} Qxe7 {[%emt 0:00:30]} 13. Bxe4 {[%emt 0:00:30]} dxe4 {[%emt 0:00:30]} 14. Nd2 {[%emt 0:00:30]} f5 {[%emt 0:00:30]} 15. gxf5 {[%emt 0:00:00]} Bxf5 {[%emt 0:00:30]} 16. O-O-O {[%emt 0:01:00]} b5 {[%emt 0:01:30]} 17. Kb1 {[%emt 0:08:30]} a5 {[%emt 0:03:30]} 18. f3 {[%emt 0:04:30]} b4 {[%emt 0:02:30]} 19. Ncxe4 {[%emt 0:01:30]} Qf7 {[%emt 0:05:30]} 20. Nc4 {[%emt 0:08:30]} Qh5 {[%emt 0:40:30]} 21. Ncd2 {[%emt 0:19:30]} Ng6 {[%emt 0:08:30]} 22. Qc4+ {[%emt 0:05:30]} Be6 {[%emt 0:06:30]} 23. Qc5 {[%emt 0:01:30]} Bd5 {[%emt 0:04:30]} 24. Ka1 {[%emt 0:01:30]} Nh4 {[%emt 0:02:30]} 25. Rhg1 {[%emt 0:01:30]} Qh6 {[%emt 0:01:30]} 26. Rdf1 {[%emt 0:16:30]} Nf5 {[%emt 0:03:25]} 27. Rg5 {[%emt 0:05:30]} Rf8 {[%emt 0:09:24]} 28. Rfg1 {[%emt 0:03:46]} Qe6 {[%emt 0:01:16]} 29. b3 {[%emt 0:15:31]} a4 {[%emt 0:05:03]} 30. Kb2 {[%emt 0:00:07]} Rf7 {[%emt 0:00:14]} 31. Nc4 {[%emt 0:02:40]} a3+ {[%emt 0:00:14]} 32. Kc1 {[%emt 0:00:27]} Bxe4 {[%emt 0:01:37]} 33. fxe4 {[%emt 0:00:46]} Qxe4 {[%emt 0:00:18]} 34. Kd2 {[%emt 0:00:24]} Nxe3 {[%emt 0:01:17]} 35. Nxe3 {[%emt 0:01:05]} Rf2+ {[%emt 0:00:08]} 36. Kc1 {[%emt 0:00:13]} Qxe3+ {[%emt 0:00:30]} 37. Kb1 {[%emt 0:00:08]} Qe4+ {[%emt 0:00:16]} 38. Ka1 {[%emt 0:00:20]} Rxa2+ {[%emt 0:00:44]} 39. Kxa2 {[%emt 0:00:30]} Qe2+ {[%emt 0:00:00]} 40. Kb1 {[%emt 0:00:00]} Qb2# {[%emt 0:00:00]} 0-1

[Event "World Junior U20 Girls 2018"]
[Site "Gebze"]
[Date "2018.09.08"]
[Round "5"]
[White "Isha Sharma"]
[Black "Nassr, Lina"]
[Result "1-0"]
[ECO "C00"]
[WhiteElo "2012"]
[BlackElo "1854"]
[Annotator "NA"]
[PlyCount "65"]
[EventDate "2018.09.05"]
[EventType "swiss"]
[EventCountry "TUR"]
[SourceTitle "playchess.com"]
[Source "ChessBase"]
[SourceQuality "1"]
[TimeControl "40/5400+30:1800+30"]

1. e4 {[%emt 0:00:30]} e6 {[%emt 0:00:30]} 2. d3 {[%emt 0:00:00]} d5 {[%emt 0:00:30]} 3. Nd2 {[%emt 0:00:00]} c5 {[%emt 0:00:30]} 4. g3 {[%emt 0:00:30]} Nf6 {[%emt 0:00:30]} 5. Bg2 {[%emt 0:00:00]} Nc6 {[%emt 0:00:00]} 6. Ngf3 {[%emt 0:00:00]} Be7 {[%emt 0:00:00]} 7. O-O {[%emt 0:00:30]} O-O {[%emt 0:00:00]} 8. Re1 {[%emt 0:00:00]} b5 {[%emt 0:01:00]} 9. e5 {[%emt 0:00:00]} Nd7 {[%emt 0:00:30]} 10. Nf1 {[%emt 0:00:00]} a5 {[%emt 0:01:30]} 11. h4 {[%emt 0:00:00]} a4 {[%emt 0:08:30]} 12. N1h2 {[%emt 0:01:30]} b4 {[%emt 0:00:30]} 13. h5 {[%emt 0:00:30]} Bb7 {[%emt 0:09:30]} 14. Ng4 {[%emt 0:01:30]} Na5 {[%emt 0:08:30]} 15. c3 {[%emt 0:02:30]} bxc3 {[%emt 0:06:30]} 16. bxc3 {[%emt 0:00:30]} Bc6 {[%emt 0:02:30]} 17. Bf4 {[%emt 0:02:30]} Rb8 {[%emt 0:17:30]} 18. Qd2 {[%emt 0:02:30]} Rb6 {[%emt 0:03:30]} 19. Rab1 {[%emt 0:09:30]} Qb8 {[%emt 0:01:30]} 20. Nf6+ {[%emt 0:05:30]} Kh8 {[%emt 0:00:30]} 21. Rxb6 {[%emt 0:05:30]} Qxb6 {[%emt 0:00:30]} 22. Ng4 {[%emt 0:07:30]} Bb5 {[%emt 0:14:30]} 23. h6 {[%emt 0:13:30]} g6 {[%emt 0:02:55]} 24. Bg5 {[%emt 0:01:30]} Qd8 {[%emt 0:01:18]} 25. Bxe7 {[%emt 0:00:30]} Qxe7 {[%emt 0:00:03]} 26. c4 {[%emt 0:00:30]} Nxc4 {[%emt 0:02:31]} 27. dxc4 {[%emt 0:00:30]} Bxc4 {[%emt 0:00:00]} 28. Rb1 {[%emt 0:02:30]} f5 {[%emt 0:06:27]} 29. Ne3 {[%emt 0:02:30]} Ba6 {[%emt 0:03:41]} 30. Qa5 {[%emt 0:02:30]} Ra8 {[%emt 0:01:14]} 31. Bf1 {[%emt 0:04:30]} Nb8 {[%emt 0:02:53]} 32. Bxa6 {[%emt 0:00:30]} Nxa6 {[%emt 0:00:05]} 33. Qxa6 {[%emt 0:00:30]} 1-0

[Event "World Junior U20 Girls 2018"]
[Site "Gebze"]
[Date "2018.09.08"]
[Round "5"]
[White "Hu, Yu A"]
[Black "Zhu, Jiner"]
[Result "0-1"]
[ECO "C79"]
[WhiteElo "2009"]
[BlackElo "2364"]
[Annotator "NA"]
[PlyCount "67"]
[EventDate "2018.09.05"]
[EventType "swiss"]
[EventCountry "TUR"]
[SourceTitle "playchess.com"]
[Source "ChessBase"]
[SourceQuality "1"]
[TimeControl "40/5400+30:1800+30"]

1. e4 {[%emt 0:01:30]} e5 {[%emt 0:00:30]} 2. Nf3 {[%emt 0:00:30]} Nc6 {[%emt 0:00:00]} 3. Bb5 {[%emt 0:00:30]} g6 {[%emt 0:00:00]} 4. c3 {[%emt 0:00:30]} a6 {[%emt 0:00:00]} 5. Ba4 {[%emt 0:02:30]} d6 {[%emt 0:00:00]} 6. O-O {[%emt 0:00:30]} Bg7 {[%emt 0:00:30]} 7. d4 {[%emt 0:00:30]} Bd7 {[%emt 0:00:30]} 8. Re1 {[%emt 0:00:30]} Nf6 {[%emt 0:00:00]} 9. Nbd2 {[%emt 0:00:30]} O-O {[%emt 0:00:00]} 10. h3 {[%emt 0:00:30]} Re8 {[%emt 0:00:30]} 11. Bc2 {[%emt 0:00:30]} Qe7 {[%emt 0:00:00]} 12. Nf1 {[%emt 0:11:30]} Qf8 {[%emt 0:00:00]} 13. Ng3 {[%emt 0:01:30]} a5 {[%emt 0:00:30] C79: Ruy Lopez: Steinitz-type lines with 3...a6 4 Ba4 Nf6 5 0-0 d6} 14. b3 $146 {[%emt 0:04:30]} ({Predecessor:} 14. Ba4 Rad8 15. Bg5 h6 16. Bd2 b6 17. Rc1 Nh7 18. Qb3 Re7 19. Qc4 Qe8 20. Bb5 exd4 21. Bxc6 Bxc6 22. cxd4 {0-1 (76) Patel,A (2478)-Caruana,F (2811) chess.com INT 2018}) 14... Rad8 {[%emt 0:04:30]} 15. Ba3 {[%emt 0:06:30]} exd4 {[%emt 0:06:30]} 16. cxd4 {[%emt 0:04:30]} Nb4 {[%emt 0:00:00]} 17. Bxb4 {[%emt 0:03:30]} axb4 {[%emt 0:03:00]} 18. Qd2 {[%emt 0:00:30]} c5 {[%emt 0:02:30]} 19. Rad1 {[%emt 0:01:30]} Bc6 {[%emt 0:01:30]} 20. Bd3 {[%emt 0:06:30]} Re7 {[%emt 0:10:30]} 21. Qc2 {[%emt 0:06:30]} b6 {[%emt 0:01:30]} 22. e5 {[%emt 0:02:30]} dxe5 {[%emt 0:02:30]} 23. Nxe5 {[%emt 0:03:30]} Qe8 {[%emt 0:00:30]} 24. Re2 {[%emt 0:02:30]} Bb7 {[%emt 0:09:30]} 25. Rde1 {[%emt 0:00:00]} Nd5 {[%emt 0:01:30]} 26. Nf3 {[%emt 0:02:00]} Rxe2 {[%emt 0:02:30]} 27. Rxe2 {[%emt 0:00:30]} Qd7 {[%emt 0:00:30]} 28. Rd2 {[%emt 0:12:30]} cxd4 {[%emt 0:01:30]} 29. Ne2 {[%emt 0:09:12]} Nc3 {[%emt 0:01:30]} 30. Ne1 {[%emt 0:01:51]} Bh6 {[%emt 0:00:30]} 31. f4 {[%emt 0:00:12]} Nxe2+ {[%emt 0:00:30]} 32. Rxe2 {[%emt 0:00:46]} Bxf4 {[%emt 0:00:00]} 33. Qc4 $19 {[%emt 0:00:58]} Be3+ {[%emt 0:01:00]} 34. Kh2 {[%emt 0:00:04]} 0-1